[Event "Sardinia World Festival-A 2024"]
[Site "Orosei"]
[Date "2024.04.27"]
[Round "1.37"]
[White "Degraeve, Remy"]
[Black "Floris, Federico"]
[Result "1-0"]
[ECO "D30"]
[WhiteElo "2432"]
[BlackElo "2129"]
[Annotator "TA"]
[PlyCount "107"]
[EventDate "2024.04.26"]
[EventType "swiss"]
[EventCountry "ITA"]
[SourceTitle "playchess.com"]
[Source "ChessBase"]
[SourceQuality "1"]
[TimeControl "40/5400+30:1800+30"]

{[%evp 17,107,30,41,17,21,13,15,24,25,20,17,17,23,18,26,13,22,31,33,36,30,39,52,31,53,49,91,20,335,308,371,388,381,266,287,218,200,164,159,164,159,172,168,152,181,97,166,51,43,43,43,44,47,50,50,50,50,64,201,199,200,195,204,180,262,257,282,262,263,274,289,275,333,333,29955,732,6666,6896,29969,29972,29972,29973,29971,29972,29972,29973,29981,29982,29982,29982,29981,29981]} 1. d4 {[%emt 0:00:04]} d5 {[%emt 0:00:10]} 2. c4 {[%emt 0:00:23]} e6 {[%emt 0:00:09]} 3. Nf3 {[%emt 0:00:11]} c5 {[%emt 0:00:19]} 4. cxd5 {[%emt 0:00:08]} exd5 {[%emt 0:00:05]} 5. g3 {[%emt 0:00:14]} Nf6 {[%emt 0:00:09]} 6. Bg2 {[%emt 0:00:06]} Nc6 {[%emt 0:00:07]} 7. O-O {[%emt 0:00:08]} Be7 {[%emt 0:00:05]} 8. dxc5 {[%emt 0:00:58]} Bxc5 {[%emt 0:00:08]} 9. Bg5 {[%emt 0:00:05]} O-O {[%emt 0:04:00]} 10. Qc1 {[%emt 0:00:06]} Be7 {[%emt 0:01:59]} 11. Nc3 {[%emt 0:00:12]} Be6 {[%emt 0:01:02]} 12. Rd1 {[%emt 0:00:08] The position is equal.} h6 {[%emt 0:03:15]} 13. Be3 {[%emt 0:00:04]} Qd7 {[%emt 0:15:30]} 14. Qc2 {[%emt 0:07:29]} Rfd8 {[%emt 0:07:45]} 15. Qa4 {[%emt 0:09:26]} Bh3 {[%emt 0:15:10]} 16. Rac1 {[%emt 0:08:02]} Bxg2 {[%emt 0:00:27]} 17. Kxg2 {[%emt 0:00:08]} Qe6 {[%emt 0:09:51]} 18. Nd4 {[%emt 0:06:04]} Nxd4 {[%emt 0:01:04]} 19. Bxd4 {[%emt 0:02:52][%cal Oa4b3]} b6 {[%emt 0:04:20]} 20. Qb3 {[%emt 0:08:25]} Bc5 {[%emt 0:09:04]} 21. e3 {[%emt 0:05:25]} Ne4 {[%emt 0:03:09]} 22. Bxc5 {[%emt 0:04:38]} (22. Nxe4 $16 Qxe4+ 23. f3) 22... Ng5 $2 {[%emt 0:03:55][%mdl 8192] [#]} (22... bxc5 $11 23. Nxe4 (23. Rxd5 Rdb8 $16) (23. Nxd5 Ng5 $11) 23... Qxe4+ 24. Kg1 (24. f3 Qe5 $11) 24... d4) 23. f4 $1 $18 {[%emt 0:04:41][%cal Bf2f4,Bf4g5][%mdl 32]} bxc5 {[%emt 0:10:50]} 24. fxg5 {[%emt 0:00:26]} Rab8 {[%emt 0:04:21]} 25. Qc2 {[%emt 0:01:10]} d4 {[%emt 0:01:48]} 26. Na4 {[%emt 0:07:53] exd4 is the strong threat.} dxe3 {[%emt 0:02:06]} 27. Nc3 {[%emt 0:07:38]} (27. Rxd8+ Rxd8 28. Rd1 (28. Kf3 $2 Rd2 $19) 28... Rxd1 29. Qxd1 Qe4+ 30. Kg1 e2 $17 (30... hxg5 $2 31. Nc3 $18)) 27... hxg5 {[%emt 0:00:54]} 28. Rxd8+ {[%emt 0:10:57]} Rxd8 {[%emt 0:00:07]} 29. Rd1 {[%emt 0:00:02] Prevents Rd2+.} Rd4 {[%emt 0:00:58]} 30. Kg1 {[%emt 0:05:19]} g6 {[%emt 0:02:07]} 31. b3 {[%emt 0:01:15]} ({Better is} 31. Re1 $18) 31... Qd7 {[%emt 0:00:32]} (31... Rxd1+ $16 32. Qxd1 Qf6) 32. Re1 {[%emt 0:02:02]} ({White should play} 32. Qe2 $18) 32... Rd3 $1 $14 {[%emt 0:00:13]} 33. Ne4 {[%emt 0:00:38][%csl LRc5,LRg5]} Qd4 {[%emt 0:00:35] Repels Nf6+} 34. Qc4 {[%emt 0:04:53]} (34. Nxg5 e2+ 35. Kg2 Qd5+ 36. Kg1 (36. Kf2 $2 Qf5+ 37. Kxe2 Re3+ 38. Kxe3 Qxc2 $19) 36... Rd2 $11) (34. Nxc5 Rc3 35. Qe4 (35. Ne6 $2 Qd2 $19) 35... Qxc5 $19) 34... Rd1 $1 {[%emt 0:00:26]} 35. Kf1 {[%emt 0:00:15] [#] aiming for Qxd4.} Qa1 {[%emt 0:00:46][%csl LRa2,LRe1]} 36. Qe2 {[%emt 0:00:51]} Rxe1+ {[%emt 0:00:09]} 37. Qxe1 {[%emt 0:00:04]} Qxa2 {[%emt 0:00:06] Black is on the road to losing.} (37... Qd4 $14 38. Qb1 (38. Nxg5 Qf6+ 39. Ke2 Qxg5 $11) 38... f5 39. Nxg5 Qd2) 38. Qxe3 $18 {[%emt 0:00:14]} Qxh2 {[%emt 0:00:32]} 39. Nxg5 {[%emt 0:00:21] Qe8+ would kill now. Active counter play!} (39. Qxc5 Qh1+ 40. Kf2 Qxe4 41. Qxa7 Qc2+ 42. Kf1 Qxb3 $15) 39... Qh1+ {[%emt 0:00:21]} 40. Ke2 {[%emt 0:00:51]} Qd5 {[%emt 0:00:23]} (40... Qg2+ $142 41. Kd1 Qd5+ 42. Kc2 c4) 41. Ne4 {[%emt 0:30:31]} Qh5+ {[%emt 0:16:09]} 42. Kd3 {[%emt 0:00:00] Intending Nf6+ and mate.} Qd5+ {[%emt 0:00:18]} 43. Kc2 {[%emt 0:00:00]} Qe5 {[%emt 0:00:15] Prevents Nf6+} 44. Qf4 {[%emt 0:00:00]} (44. Qxc5 Qxe4+ 45. Kb2 Qg2+ 46. Ka3 Qxg3 47. Qxa7 f5 $11) 44... Qe7 {[%emt 0:01:24]} 45. g4 {[%emt 0:00:00]} Qh4 {[%emt 0:06:48] Against g5} (45... Qe6 $18 46. Nxc5 Qe2+ 47. Kc3 Qe1+ 48. Kc2 Qa5) 46. Qb8+ {[%emt 0:00:00]} (46. Ng5 $142 f6 47. Qxf6 Qh2+ 48. Kc3 Qg3+ 49. Kb2 Qg2+ 50. Ka3 Qb7 51. Qxg6+ Qg7 52. Qe8+ Qf8 53. Qxf8+ Kxf8 54. Ne6+ Kg8 55. Nxc5) 46... Kh7 {[%emt 0:03:00]} 47. Qe5 {[%emt 0:00:00] White threatens g5 and mate.} (47. Nxc5 Qf2+ (47... Qxg4 $2 {loses.} 48. Qxa7 Qe2+ 49. Kc3 $18) 48. Kd3 Qxc5 $15) 47... f5 {[%emt 0:02:19]} 48. gxf5 {[%emt 0:00:00] White mates.} gxf5 {[%emt 0:03:10]} 49. Qxf5+ {[%emt 0:00:00]} Kg7 {[%emt 0:00:25]} 50. Qg5+ {[%emt 0:00:00]} Qxg5 {[%emt 0:00:22]} 51. Nxg5 {[%emt 0:00:00]} c4 {[%emt 0:00:32]} 52. bxc4 {[%emt 0:00:00]} Kf6 {[%emt 0:00:06]} 53. Nf3 {[%emt 0:00:00]} Ke6 {[%emt 0:00:36]} 54. Kc3 {[%emt 0:12:13] Weighted Error Value: White=0.18 (very precise) /Black=0.48.  Loses game:     	---       	Black=1      Mistake:       	White=4     	Black=4      Inaccurate:     	White=1     	Black=2      OK:         	White=17    	Black=11     Best:        	White=3     	Black=1      Strong:       	White=1     	Black=2} 1-0

[Event "Sardinia World Festival-A 2024"]
[Site "Orosei"]
[Date "2024.04.27"]
[Round "1.38"]
[White "Advaitt Srikant Koduri"]
[Black "Kilic, Eray"]
[Result "0-1"]
[ECO "A48"]
[WhiteElo "2125"]
[BlackElo "2429"]
[Annotator "ChessBase"]
[PlyCount "86"]
[EventDate "2024.04.26"]
[EventType "swiss"]
[EventCountry "ITA"]
[SourceTitle "playchess.com"]
[Source "ChessBase"]
[SourceQuality "1"]
[TimeControl "40/5400+30:1800+30"]

1. d4 {[%emt 0:00:11]} Nf6 {[%emt 0:00:03]} 2. Nf3 {[%emt 0:00:18]} g6 {[%emt 0:00:04]} 3. Bf4 {[%emt 0:00:14]} Bg7 {[%emt 0:00:05]} 4. e3 {[%emt 0:00:18]} O-O {[%emt 0:00:07]} 5. Be2 {[%emt 0:00:41]} d6 {[%emt 0:00:13]} 6. h3 {[%emt 0:00:16]} c5 {[%emt 0:00:05]} 7. c3 {[%emt 0:00:13]} Qb6 {[%emt 0:00:04]} 8. Qb3 {[%emt 0:01:24]} Be6 {[%emt 0:00:50]} 9. Qxb6 {[%emt 0:03:10]} axb6 {[%emt 0:00:08]} 10. a3 {[%emt 0:00:19]} cxd4 {[%emt 0:00:05]} 11. exd4 {[%emt 0:04:45]} Nd5 {[%emt 0:03:21]} 12. Bd2 {[%emt 0:18:37]} Nc6 {[%emt 0:06:20]} 13. O-O {[%emt 0:02:59]} Na5 {[%emt 0:04:10]} 14. c4 {[%emt 0:05:59]} Nb3 {[%emt 0:02:40]} 15. cxd5 {[%emt 0:07:19]} Bxd5 {[%emt 0:00:05]} 16. Nc3 {[%emt 0:01:08]} Bxf3 {[%emt 0:00:23]} 17. Rad1 {[%emt 0:20:04]} Bxe2 {[%emt 0:01:38]} 18. Nxe2 {[%emt 0:00:11]} Rfc8 {[%emt 0:05:22]} 19. Bc3 {[%emt 0:00:58]} d5 {[%emt 0:00:31]} 20. Rd3 {[%emt 0:01:05]} Rc4 {[%emt 0:00:31]} 21. Rfd1 {[%emt 0:01:39]} Rac8 {[%emt 0:09:31]} 22. f4 {[%emt 0:04:43]} e6 {[%emt 0:01:24]} 23. Kf2 {[%emt 0:00:27]} b5 {[%emt 0:02:16]} 24. Bb4 {[%emt 0:07:10]} Nc1 {[%emt 0:00:40]} 25. Nxc1 {[%emt 0:00:20]} Rxc1 {[%emt 0:00:04]} 26. Rxc1 {[%emt 0:01:12]} Rxc1 {[%emt 0:00:06]} 27. Ke3 {[%emt 0:02:15]} Rc2 {[%emt 0:03:32]} 28. Rc3 {[%emt 0:00:50]} Rxc3+ {[%emt 0:00:44]} 29. Bxc3 {[%emt 0:00:03]} Bf8 {[%emt 0:01:30]} 30. g4 {[%emt 0:00:46]} h6 {[%emt 0:02:49]} 31. Kf3 {[%emt 0:08:18]} g5 {[%emt 0:02:24]} 32. Ba5 {[%emt 0:02:32]} Be7 {[%emt 0:03:48]} 33. Bd2 {[%emt 0:01:35]} Kg7 {[%emt 0:00:35]} 34. Ke2 {[%emt 0:02:07]} Kg6 {[%emt 0:00:38]} 35. Kf3 {[%emt 0:01:12]} Bd6 {[%emt 0:00:43]} 36. fxg5 {[%emt 0:00:52]} hxg5 {[%emt 0:00:02]} 37. Be1 {[%emt 0:00:18]} Bc7 {[%emt 0:00:48]} 38. h4 {[%emt 0:01:28]} gxh4 {[%emt 0:00:04]} 39. Bxh4 {[%emt 0:00:05]} Bb6 {[%emt 0:00:02]} 40. Bf2 {[%emt 0:00:31]} f6 {[%emt 0:00:01]} 41. b4 {[%emt 0:02:37]} e5 {[%emt 0:03:09]} 42. dxe5 {[%emt 0:00:32]} Bxf2 {[%emt 0:00:07]} 43. Kxf2 {[%emt 0:00:25]} fxe5 {[%emt 1:20:18]} 0-1

[Event "Sardinia World Festival-A 2024"]
[Site "Orosei"]
[Date "2024.04.27"]
[Round "1.39"]
[White "Aghayev, Miragha"]
[Black "Pegno, Mattia"]
[Result "1-0"]
[ECO "B72"]
[WhiteElo "2424"]
[BlackElo "2120"]
[Annotator "ChessBase"]
[PlyCount "77"]
[EventDate "2024.04.26"]
[EventType "swiss"]
[EventCountry "ITA"]
[SourceTitle "playchess.com"]
[Source "ChessBase"]
[SourceQuality "1"]
[TimeControl "40/5400+30:1800+30"]

1. e4 {[%emt 0:00:20]} c5 {[%emt 0:00:21]} 2. Nf3 {[%emt 0:00:43]} Nc6 {[%emt 0:00:19]} 3. d4 {[%emt 0:00:49]} cxd4 {[%emt 0:00:08]} 4. Nxd4 {[%emt 0:00:07]} g6 {[%emt 0:00:35]} 5. Nc3 {[%emt 0:00:41]} Bg7 {[%emt 0:00:10]} 6. Be3 {[%emt 0:00:06]} Nf6 {[%emt 0:00:20]} 7. Bc4 {[%emt 0:00:07]} O-O {[%emt 0:00:14]} 8. Bb3 {[%emt 0:00:05]} d6 {[%emt 0:00:43]} 9. h3 {[%emt 0:03:46]} Na5 {[%emt 0:03:19]} 10. O-O {[%emt 0:04:31]} b6 {[%emt 0:01:24]} 11. Bd5 {[%emt 0:06:18]} Nxd5 {[%emt 0:03:27]} 12. exd5 {[%emt 0:01:18]} Bb7 {[%emt 0:08:32]} 13. b3 {[%emt 0:11:09]} Rc8 {[%emt 0:11:40]} 14. Qd2 {[%emt 0:04:57]} Qd7 {[%emt 0:22:55]} 15. Rfe1 {[%emt 0:11:52]} Rc5 {[%emt 0:10:27]} 16. Nde2 {[%emt 0:12:08]} Rc7 {[%emt 0:02:32]} 17. Bd4 {[%emt 0:02:40]} Rfc8 {[%emt 0:00:43]} 18. Bxg7 {[%emt 0:01:34]} Kxg7 {[%emt 0:00:06]} 19. Rac1 {[%emt 0:04:02]} Kg8 {[%emt 0:09:20]} 20. Qd3 {[%emt 0:09:22]} Qf5 {[%emt 0:14:43]} 21. Qxf5 {[%emt 0:11:40]} gxf5 {[%emt 0:00:17]} 22. Nb5 {[%emt 0:00:19]} Rxc2 {[%emt 0:06:14]} 23. Rxc2 {[%emt 0:00:33]} Rxc2 {[%emt 0:00:03]} 24. Ned4 {[%emt 0:00:10]} Rxa2 {[%emt 0:01:41]} 25. Nxf5 {[%emt 0:01:27]} Kf8 {[%emt 0:02:05]} 26. Rxe7 {[%emt 0:02:56]} Bc8 {[%emt 0:00:38]} 27. Nbxd6 {[%emt 0:00:10]} Bxf5 {[%emt 0:00:10]} 28. Nxf5 {[%emt 0:00:04]} Nxb3 {[%emt 0:00:52]} 29. d6 {[%emt 0:00:45]} Nc5 {[%emt 0:00:30]} 30. d7 {[%emt 0:00:29]} Nxd7 {[%emt 0:00:06]} 31. Rxd7 {[%emt 0:00:06]} f6 {[%emt 0:00:52]} 32. Rxh7 {[%emt 0:00:11]} a5 {[%emt 0:00:15]} 33. Rb7 {[%emt 0:00:33]} Rb2 {[%emt 0:00:21]} 34. Ra7 {[%emt 0:00:10]} Rb4 {[%emt 0:00:41]} 35. h4 {[%emt 0:11:52]} Rf4 {[%emt 0:00:45]} 36. Ne7 {[%emt 0:00:00]} Ke8 {[%emt 0:00:31]} 37. Nd5 {[%emt 0:00:00]} Rxh4 {[%emt 0:00:20]} 38. Nxb6 {[%emt 0:00:00]} Rh5 {[%emt 0:00:38]} 39. Nc4 {[%emt 0:00:00]} 1-0

[Event "Sardinia World Festival-A 2024"]
[Site "Orosei"]
[Date "2024.04.27"]
[Round "1.40"]
[White "Ter-Avetisjana, Agnesa Stepania"]
[Black "Kanov, Nikola"]
[Result "0-1"]
[ECO "E61"]
[WhiteElo "2120"]
[BlackElo "2423"]
[Annotator "RC"]
[PlyCount "98"]
[EventDate "2024.04.26"]
[EventType "swiss"]
[EventCountry "ITA"]
[SourceTitle "playchess.com"]
[Source "ChessBase"]
[SourceQuality "1"]
[TimeControl "40/5400+30:1800+30"]

1. d4 {[%emt 0:00:02]} Nf6 {[%emt 0:00:16]} 2. Nf3 {[%emt 0:00:06]} c5 {[%emt 0:00:39]} 3. e3 {[%emt 0:00:31]} g6 {[%emt 1:31:05]} 4. c4 {[%emt 0:00:30]} Bg7 {[%emt 0:00:00]} 5. Nc3 {[%emt 0:00:11]} O-O {[%emt 0:00:00]} 6. d5 {[%emt 0:04:07]} d6 {[%emt 0:00:00]} 7. h3 {[%emt 0:00:13]} e6 {[%emt 0:00:00]} 8. e4 {[%emt 0:03:59]} exd5 {[%emt 0:00:00]} 9. exd5 {[%emt 0:00:11]} Re8+ {[%emt 0:00:00]} 10. Be2 {[%emt 0:01:26]} Bf5 {[%emt 0:00:00]} 11. O-O {[%emt 0:01:23]} Ne4 {[%emt 0:00:00]} 12. Nxe4 {[%emt 0:01:18]} Bxe4 {[%emt 0:00:00]} 13. Ne1 {[%emt 0:00:22]} Na6 {[%emt 0:00:00]} 14. Bd3 {[%emt 0:11:26]} b5 {[%emt 0:00:00]} 15. cxb5 {[%emt 0:12:55]} Bxd3 {[%emt 0:00:00]} 16. Qxd3 {[%emt 0:08:25]} Nc7 {[%emt 0:00:00]} 17. Bd2 {[%emt 0:02:39]} Qh4 {[%emt 0:00:00]} 18. Rc1 {[%emt 0:06:47]} Bxb2 {[%emt 0:00:00]} 19. Rc2 {[%emt 0:01:44]} Bd4 {[%emt 0:00:00]} 20. Ba5 {[%emt 0:16:19]} Nxd5 {[%emt 0:00:00]} 21. Nf3 {[%emt 0:00:39]} Qe4 {[%emt 0:00:00]} 22. Qxe4 {[%emt 0:04:11]} Rxe4 {[%emt 0:00:00]} 23. Rd1 {[%emt 0:00:19]} Nf4 {[%emt 0:00:00]} 24. Nxd4 {[%emt 0:08:32]} cxd4 {[%emt 0:00:00]} 25. Rc6 {[%emt 0:05:26]} Rb8 {[%emt 0:01:39]} 26. a4 {[%emt 0:03:12]} d3 {[%emt 0:00:46]} 27. g3 {[%emt 0:02:50]} Rxa4 {[%emt 0:02:29]} 28. Bc7 {[%emt 0:00:37]} Ne2+ {[%emt 0:00:33]} 29. Kf1 {[%emt 0:02:49]} Rxb5 {[%emt 0:00:23]} 30. Rxd3 {[%emt 0:00:29]} Nd4 {[%emt 0:01:05]} 31. Rxd6 {[%emt 0:00:28]} Ne6 {[%emt 0:00:52]} 32. Rc6 {[%emt 0:01:39]} Ra2 {[%emt 0:01:27]} 33. Rc4 {[%emt 0:00:43]} Rbb2 {[%emt 0:03:32]} 34. Be5 {[%emt 0:00:29]} Rxf2+ {[%emt 0:00:13]} 35. Kg1 {[%emt 0:00:03]} Rg2+ {[%emt 0:00:54]} 36. Kh1 {[%emt 0:00:06]} Rh2+ {[%emt 0:00:27]} 37. Kg1 {[%emt 0:00:04]} Rhg2+ {[%emt 0:00:05]} 38. Kh1 {[%emt 0:00:07]} Rgc2 {[%emt 0:00:09]} 39. Rxc2 {[%emt 0:00:18]} Rxc2 {[%emt 0:00:04]} 40. Ra3 {[%emt 0:00:32]} Rc5 {[%emt 0:01:43]} 41. Bf6 {[%emt 0:03:05]} Rf5 {[%emt 0:03:50]} 42. Bb2 {[%emt 0:00:28]} Rb5 {[%emt 0:04:03]} 43. Bf6 {[%emt 0:00:12]} Rb7 {[%emt 0:00:47]} 44. Kg2 {[%emt 0:00:09]} h6 {[%emt 0:01:10]} 45. h4 {[%emt 0:00:32]} Kh7 {[%emt 0:02:45]} 46. Kf3 {[%emt 0:00:08]} Rb5 {[%emt 0:04:32]} 47. Ke4 {[%emt 0:00:45]} a5 {[%emt 0:02:39]} 48. Rc3 {[%emt 0:00:53]} Rc5 {[%emt 0:02:47]} 49. Rb3 {[%emt 0:00:10]} Rf5 {[%emt 0:14:06]} 0-1

[Event "Sardinia World Festival-A 2024"]
[Site "Orosei"]
[Date "2024.04.27"]
[Round "1.41"]
[White "Haldorsen, Benjamin"]
[Black "Semling, Johannes"]
[Result "1-0"]
[ECO "C02"]
[WhiteElo "2419"]
[BlackElo "2120"]
[Annotator "TA"]
[PlyCount "119"]
[EventDate "2024.04.26"]
[EventType "swiss"]
[EventCountry "ITA"]
[SourceTitle "playchess.com"]
[Source "ChessBase"]
[SourceQuality "1"]
[TimeControl "40/5400+30:1800+30"]

{[%evp 15,119,0,8,-12,-2,-19,25,17,17,13,15,14,21,0,0,0,5,18,18,0,3,-12,0,-40,-15,-32,-18,-8,28,0,97,77,108,108,120,112,125,112,179,162,174,161,131,131,111,58,72,91,240,245,241,233,237,239,240,242,245,168,147,135,346,329,339,341,346,325,317,0,0,0,0,0,81,80,151,148,141,144,808,801,778,787,745,768,650,614,591,660,663,618,458,588,635,644,572,536,1448,1413,29986,29987,29987,29988,29988,29989,29989,29990]} 1. e4 {[%emt 0:00:19]} e6 {[%emt 0:00:29]} 2. d4 {[%emt 0:03:42]} d5 {[%emt 0:00:11]} 3. e5 {[%emt 0:00:49]} c5 {[%emt 0:00:41]} 4. c3 {[%emt 0:00:09]} Nc6 {[%emt 0:00:05]} 5. Nf3 {[%emt 0:00:07]} Qb6 {[%emt 0:00:20]} 6. a3 {[%emt 0:00:42]} c4 {[%emt 0:00:39]} 7. Nbd2 {[%emt 0:00:15]} Na5 {[%emt 0:00:28]} 8. Rb1 {[%emt 0:00:45]} Bd7 {[%emt 0:00:56]} 9. h4 {[%emt 0:00:06]} O-O-O {[%emt 0:05:32]} 10. h5 {[%emt 0:04:06]} (10. b3 {feels hotter.} cxb3 11. c4 Ba4 12. c5) 10... h6 {[%emt 0:01:42]} 11. b4 {[%emt 0:03:59] White has an edge.} cxb3 {[%emt 0:00:19]} 12. Nxb3 {[%emt 0:00:06]} Ba4 {[%emt 0:00:27]} 13. Nfd2 {[%emt 0:00:03]} Kb8 {[%emt 0:18:16]} 14. Bd3 {[%emt 0:12:49]} Rc8 {[%emt 0:04:23]} 15. Bc2 {[%emt 0:02:42] Nxa5 would now be deadly.} Nxb3 {[%emt 0:01:39]} 16. Bxb3 {[%emt 0:07:49]} Bxb3 {[%emt 0:02:05]} 17. Rxb3 {[%emt 0:00:59]} Qa6 {[%emt 0:13:37]} 18. Rh3 {[%emt 0:13:54]} f6 {[%emt 0:05:34]} 19. f4 {[%emt 0:03:25]} Ne7 {[%emt 0:05:26]} 20. Qe2 {[%emt 0:10:23]} Qxe2+ {[%emt 0:06:15]} (20... Rc6 {with more complications.} 21. Nf3 f5 22. Kf2 Rg8) 21. Kxe2 {[%emt 0:00:02]} Nc6 {[%emt 0:01:11]} 22. Rb1 {[%emt 0:03:28]} Na5 {[%emt 0:09:17]} (22... fxe5 $11 {keeps the balance.} 23. dxe5 Rg8) 23. Rg3 {[%emt 0:01:09]} b6 {[%emt 0:10:25]} 24. Kd3 {[%emt 0:01:10]} fxe5 {[%emt 0:02:33]} 25. fxe5 {[%emt 0:00:39]} Kc7 {[%emt 0:04:22]} 26. Nf3 {[%emt 0:02:55]} Kd7 {[%emt 0:02:27]} (26... Kd8 $16 27. a4 Rh7) 27. Nh4 $1 $18 {[%emt 0:00:51]} Rg8 {[%emt 0:03:42]} 28. Bxh6 {[%emt 0:02:51]} Rh8 {[%emt 0:00:05]} 29. Bxg7 {[%emt 0:00:23]} Rxh5 {[%emt 0:00:08]} 30. Bxf8 {[%emt 0:01:42]} (30. Bf6 $16) 30... Rxh4 $14 {[%emt 0:01:44]} 31. Rf1 {[%emt 0:02:44]} Nc4 {[%emt 0:00:29]} (31... Kc6 $16) 32. Rg7+ $18 {[%emt 0:00:39]} Kc6 {[%emt 0:00:10]} 33. Rxa7 {[%emt 0:00:20]} Rg4 {[%emt 0:00:38]} 34. Rf6 $1 {[%emt 0:00:37]} (34. Rg7 $2 Rxf8 35. Rxg4 Rxf1 $19) 34... Re8 {[%emt 0:00:43]} (34... Rg3+ 35. Ke2 Rxg2+ 36. Kf3 $18) 35. Rff7 $1 {[%emt 0:06:46]} (35. Rg7 $6 Re4 $16) 35... Rc8 {[%emt 0:00:30] [#] Against Rfc7+} 36. Rfe7 $1 {[%emt 0:05:42]} Rg3+ {[%emt 0:00:03]} (36... Rxf8 37. Rec7+ Kb5 38. a4#) 37. Ke2 $1 {[%emt 0:00:06]} Rxg2+ $2 {[%emt 0:00:02]} ({And not} 37... Rxf8 38. Rec7+ Kb5 39. a4#) ({Don't go for} 37... Re3+ $2 38. Kd1 Nxe5 (38... Rxf8 39. Rec7+ Kb5 40. a4#) (38... Rd3+ $2 39. Kc2 $18) 39. Bh6 $18 (39. Rxe6+ Kb5 $18)) (37... Nb2 $16 {keeps fighting.}) 38. Kf3 {[%emt 0:00:16]} Rg6 {[%emt 0:00:14]} 39. Bg7 {[%emt 0:00:23] Strongly threatening a4.} Nd2+ {[%emt 0:01:16]} 40. Ke3 {[%emt 0:02:28]} Ne4 {[%emt 0:00:53][%cal Oc6b5] [#]} 41. Bf6 $2 {[%emt 0:37:38]} Kb5 $11 {[%emt 0:12:06]} 42. a4+ {[%emt 0:00:00]} Kc4 {[%emt 0:00:04]} 43. Rxe6 {[%emt 0:00:00]} Rg3+ {[%emt 0:07:05]} (43... Rg1 $11) 44. Kf4 $16 {[%emt 0:00:00] Black is on the road to losing.} Rxc3 {[%emt 0:00:41]} (44... Rg1 $142) 45. Rxb6 {[%emt 0:00:00] And now Bg7 would win.} Kxd4 {[%emt 0:00:41]} 46. Bg7 {[%emt 0:00:00] Against Rf8+} R3c7 $2 {[%emt 0:04:46][%mdl 8192]} (46... Kc5 $16 47. a5 Rc4) 47. e6+ $18 {[%emt 0:00:00]} Kc5 {[%emt 0:00:10]} 48. Rb5+ {[%emt 0:00:00]} Kc4 {[%emt 0:00:21]} 49. Rxc7+ {[%emt 0:00:00]} Rxc7 {[%emt 0:09:10][%mdl 4096] Endgame. [#] KRB-KRN} 50. Bf8 $1 {[%emt 0:00:00] Threatens to win with e7.} Rc8 {[%emt 0:00:00]} 51. Ba3 {[%emt 0:00:00]} Nf6 {[%emt 0:00:00]} 52. Ke5 {[%emt 0:00:00]} Ng4+ {[%emt 0:00:00]} 53. Kd6 {[%emt 0:00:00] Rb4+ is the strong threat.} d4 {[%emt 0:00:00][%cal Bd5d4,Bd4d3,Bd3d2][%mdl 32]} 54. e7 {[%emt 0:00:00] Wards off Rd8+. aiming for Ke6.} Nf6 {[%emt 0:00:00]} 55. Ke5 {[%emt 0:00:00]} Ng4+ {[%emt 0:01:27]} 56. Ke6 {[%emt 0:00:00][%cal Ob5c5] White threatens Rc5+! and mate.} Kc3 {[%emt 0:01:32]} 57. Rc5+ {[%emt 0:00:32] White mates.} Rxc5 {[%emt 0:00:05]} 58. Bxc5 {[%emt 0:00:07]} ({Weaker is} 58. e8=R Re5+ 59. Kf7 d3 60. Rc8+ Kb3 $17) 58... d3 {[%emt 0:00:31]} 59. e8=Q {[%emt 0:00:08]} d2 {[%emt 0:00:05]} 60. Qh8+ {[%emt 0:01:28] Weighted Error Value: White=0.19 (very precise) /Black=0.34.  Loses game:     	---       	Black=2      Missed win:     	White=1     	---        Mistake:       	White=1     	Black=5      Inaccurate:     	White=3     	Black=4      OK:         	White=10    	Black=12     Best:        	White=8     	Black=8      Strong:       	White=3     	---} 1-0

[Event "Sardinia World Festival-A 2024"]
[Site "Orosei"]
[Date "2024.04.27"]
[Round "1.42"]
[White "Romagno, Pasquale"]
[Black "Yankelevich, Lev"]
[Result "0-1"]
[ECO "E24"]
[WhiteElo "2119"]
[BlackElo "2413"]
[Annotator "ChessBase"]
[PlyCount "44"]
[EventDate "2024.04.26"]
[EventType "swiss"]
[EventCountry "ITA"]
[SourceTitle "playchess.com"]
[Source "ChessBase"]
[SourceQuality "1"]
[TimeControl "40/5400+30:1800+30"]

1. d4 {[%emt 0:00:01]} Nf6 {[%emt 0:00:14]} 2. c4 {[%emt 0:00:04]} e6 {[%emt 0:00:10]} 3. Nc3 {[%emt 0:00:04]} Bb4 {[%emt 0:00:17]} 4. f3 {[%emt 0:00:03]} c5 {[%emt 0:00:42]} 5. a3 {[%emt 0:00:10]} Bxc3+ {[%emt 0:02:50]} 6. bxc3 {[%emt 0:00:42]} Nc6 {[%emt 0:00:42]} 7. e4 {[%emt 0:00:56]} d6 {[%emt 0:00:18]} 8. d5 {[%emt 0:01:20]} Ne5 {[%emt 0:04:14]} 9. Bg5 {[%emt 0:22:04]} h6 {[%emt 0:01:44]} 10. Bh4 {[%emt 0:01:12]} O-O {[%emt 0:01:03]} 11. Be2 {[%emt 0:16:33]} Re8 {[%emt 0:11:37]} 12. g4 {[%emt 0:03:41]} Ng6 {[%emt 0:23:50]} 13. Bg3 {[%emt 0:00:53]} exd5 {[%emt 0:02:43]} 14. cxd5 {[%emt 0:01:21]} h5 {[%emt 0:09:33]} 15. Bb5 {[%emt 0:16:21]} Bd7 {[%emt 0:05:59]} 16. Bxd7 {[%emt 0:00:59]} Qxd7 {[%emt 0:00:15]} 17. g5 {[%emt 0:03:09]} Nxe4 {[%emt 0:03:01]} 18. fxe4 {[%emt 0:00:38]} Rxe4+ {[%emt 0:00:07]} 19. Kf1 {[%emt 0:07:51]} h4 {[%emt 0:05:45]} 20. Be1 {[%emt 0:18:13]} Qb5+ {[%emt 0:07:08]} 21. Kf2 {[%emt 0:00:41]} Rf4+ {[%emt 0:00:18]} 22. Kg2 {[%emt 0:00:43]} Qf1# {[%emt 0:00:08]} 0-1